Cogmind - Beta 16.1 @@@ ROGUE MODE // 2026.03.12 @ 13:51:33 Player: Ceorik Result: Destroyed by Lightning with EMDS Performance ------------- Evolutions (4) 2000 Regions Visited (16) 3200 Robots Destroyed (168) 840 Value Destroyed (4718) 4718 Prototype IDs (11) 220 Alien Tech Used (0) 0 Bonus (3294) 3294 TOTAL SCORE: 14272 Bonus ------- High Alert Combat Kills 27 Follower Combat Kills 2267 Network Hubs Disabled 200 Built Enhanced Grunts 300 Met R17 at Cetus 500 Cogmind --------- Core Integrity 0/850 Matter 234/300 Energy 100/100 System Corruption 36% Temperature Cool (0) Movement Core (50) Location -6/Hub_04(d) Parts ------- > --- POWER (2) -------- (None) > --- PROPULSION (3) --- (None) > --- UTILITY (8) ------ (None) > --- WEAPON (2) ------- (None) > --- INVENTORY (5) ---- Hardened Light Armor Plating Improved Field Recycling Unit (0) Proton Cannon Magnetic Acceleration Cannon Proton Missile Launcher Peak State ------------ > --- POWER ------------ Fission Core Quantum Reactor > --- PROPULSION ------- Improved Medium Treads Improved Medium Treads Improved Medium Treads > --- UTILITY ---------- Improved Cryofiber Web Advanced Heat Sink Advanced Heat Sink Layered Medium Armor Plating Centrium Medium Armor Plating Centrium Medium Armor Plating Medium Reflective Plating Hacking Suite > --- WEAPON ----------- Heavy Plasma Cannon Advanced KE Penetrator > --- INVENTORY -------- Advanced ECM Suite Improved Field Recycling Unit Proton Cannon Heavy Plasma Cannon Phasing Sabre [Rating: 89] Favorites ----------- Power Light Nuclear Core Engine Ion Engine Power Core Light Nuclear Core Reactor Quantum Reactor Propulsion Wheel Treads Light Treads Leg Aluminum Leg Wheel Wheel Hover Unit Improved Airjet Utility Huge Storage Unit Device Improved Heat Sink Storage Huge Storage Unit Processor Targeting Computer Hackware Hacking Suite Protection Light Armor Plating Weapon Heavy Assault Rifle Energy Gun Medium Laser Energy Cannon Heavy Plasma Cannon Ballistic Gun Heavy Assault Rifle Ballistic Cannon Assault Cannon Launcher Improved Grenade Launcher Slashing Weapon Katana Build | -11 -10 -10 -9 -9 -9 -8 -8 -8 -7 -7 -7 -6 -6 -6 -6 -6 ------- Run | Yrd Mat Min Mat Min Exi Min Mat Sto Fac Was Fac Fac Ext Cet Arc Hub Slots Evolved 8 | . . . 2 . . . 2 . 2 . . 2 . . . . Power 1 | . . . . . . . . . 1 . . . . . . . Propulsion 1 | . . . . . . . 1 . . . . . . . . . Utility 6 | . . . 2 . . . 1 . 1 . . 2 . . . . Weapon . | . . . . . . . . . . . . . . . . . Parts Attached 189 | 7 8 12 26 . . 13 24 13 3 2 11 31 24 5 3 7 Power 32 | 1 2 3 4 . . 1 3 2 1 . 1 5 6 2 1 . Engine 18 | 1 2 2 4 . . 1 1 1 . . . 3 3 . . . Core 13 | . . 1 . . . . 2 1 1 . 1 2 3 1 1 . Reactor 1 | . . . . . . . . . . . . . . 1 . . Propulsion 45 | 2 2 3 7 . . 3 5 2 . 2 2 9 6 . . 2 Treads 19 | 2 1 . 3 . . 2 . 1 . 1 . 1 6 . . 2 Leg 3 | . . . . . . . 1 . . . . 2 . . . . Wheel 19 | . 1 3 4 . . 1 4 1 . 1 . 4 . . . . Hover 4 | . . . . . . . . . . . 2 2 . . . . Flight . | . . . . . . . . . . . . . . . . . Utility 69 | 2 2 3 8 . . 3 10 5 2 . 5 12 9 2 2 4 Device 30 | 1 . 1 1 . . 2 6 3 1 . 2 5 4 . 2 2 Storage 5 | 1 2 . . . . . . 1 . . . . . . . 1 Processor 10 | . . 1 2 . . . 2 . . . 2 3 . . . . Hackware 3 | . . . . . . . . . 1 . . 2 . . . . Protection 21 | . . 1 5 . . 1 2 1 . . 1 2 5 2 . 1 Artifact . | . . . . . . . . . . . . . . . . . Weapon 43 | 2 2 3 7 . . 6 6 4 . . 3 5 3 1 . 1 Energy Gun 13 | 1 1 2 2 . . 1 3 2 . . . 1 . . . . Energy Cannon 9 | . . . 1 . . 1 . . . . 1 3 3 . . . Ballistic Gun 9 | 1 1 1 2 . . 2 1 . . . . . . 1 . . Ballistic Cannon 3 | . . . . . . . 1 1 . . 1 . . . . . Launcher 8 | . . . 2 . . 2 . 1 . . 1 1 . . . 1 Special Weapon . | . . . . . . . . . . . . . . . . . Impact Weapon . | . . . . . . . . . . . . . . . . . Slashing Weapon 1 | . . . . . . . 1 . . . . . . . . . Piercing Weapon . | . . . . . . . . . . . . . . . . . Special Melee Weapon . | . . . . . . . . . . . . . . . . . Unidentified Prototypes 11 | . . . 3 . . . . 3 . . 1 2 . 2 . . Corrupted Parts 3 | . . . . . . . . . . . . . 3 . . . System Corruption 18 | . . . . . . . . . . . . . 18 . . . Parts Lost 57 | . 1 8 4 . . 6 10 4 . 6 . 3 8 2 1 4 Power 10 | . . 3 . . . 1 1 1 . 2 . 1 . . . 1 Propulsion 21 | . 1 2 1 . . 3 4 2 . 2 . 2 4 . . . Utility 18 | . . 1 2 . . 2 3 1 . . . . 4 2 1 2 Weapon 8 | . . 2 1 . . . 2 . . 2 . . . . . 1 Highest Loss Streak 5 | . 1 4 1 . . 3 3 3 . 5 . 1 4 1 1 4 To Critical Strikes . | . . . . . . . . . . . . . . . . . Average Backups 15 | 1 12 21 24 25 25 23 24 24 23 18 4 4 4 5 5 6 Power 1 | . 1 . 2 3 3 3 2 3 2 1 . . . . . . Propulsion 1 | 1 2 4 3 3 3 1 1 . 1 . . . . . . . Utility 7 | . 4 11 8 9 9 8 13 14 14 11 2 3 2 2 2 2 Weapon 5 | . 3 4 9 9 9 9 6 5 6 5 2 1 2 3 3 3 Tool/Special . | . . . . . . . . . . . . . . . . . Unused Backups 53 | . 5 . 13 1 . 2 3 2 . 14 2 1 2 . . 8 Power 6 | . 1 . 1 . . 1 . 2 . 1 . . . . . . Propulsion 2 | . 1 . . . . . . . . . . . . . . 1 Utility 24 | . 3 . 5 1 . . 1 . . 10 2 . . . . 2 Weapon 20 | . . . 7 . . 1 1 . . 3 . 1 2 . . 5 Tool/Special 1 | . . . . . . . 1 . . . . . . . . . Average Slot Usage (%) 94 | . 99 99 99 100 100 98 98 98 99 63 52 85 95 90 93 94 Engine 6 | . 14 7 11 11 11 10 2 . 7 1 . 5 9 4 . . Core 3 | . . 6 . . . . 6 8 6 4 3 6 3 6 6 5 Treads 8 | . 22 3 2 . . 5 2 6 7 . 2 . 16 20 20 19 Leg 1 | . . . . . . . 5 2 . . . 3 . . . . Wheel 11 | . 5 24 19 22 22 15 17 17 15 15 . 5 2 . . . Hover 1 | . . . . . . . . . . . 10 7 . . . . Device 14 | . 14 9 11 11 11 11 17 17 15 10 5 10 24 21 20 23 Storage 7 | . 14 14 11 11 11 11 9 9 7 5 . . . . . 2 Processor 6 | . . . 11 11 11 11 9 9 7 5 13 13 2 . . . Hackware 2 | . . . . . . . . . 7 5 . 7 7 6 6 5 Protection 10 | . . 4 10 11 11 10 9 9 7 1 5 13 17 20 20 17 Energy Gun 5 | . 14 13 7 . . . 9 12 6 4 . . . . . . Energy Cannon 2 | . . . . . . . . . . . . 7 9 6 6 5 Ballistic Gun 8 | . 14 14 14 22 22 20 5 . . . . . . 1 6 5 Peak Build Rating 89 | 7 9 11 20 18 18 21 33 36 42 40 38 63 69 89 89 89 Average Rating 33 | 5 7 10 16 18 18 18 30 33 40 23 26 50 58 68 86 80 On Entrance 31 | . 7 9 10 18 18 18 21 33 36 40 3 31 55 65 89 86 Avg Prop Armor Cover (%) 10 | . 13 13 . . . 8 5 7 7 35 34 6 6 . . . Naked Turns 35 | . . . . . . . . . . 13 . . . . . 22 Heaviest Build 117 | 13 89 91 102 97 97 101 109 114 117 113 22 53 57 78 78 90 Greatest Support 90 | 40 40 20 20 20 20 20 30 26 26 36 18 36 90 90 90 90 Greatest Overweight (x) 10 | . 8 8 5 4 4 10 10 10 4 5 1 3 4 . . 1 Average Overweight (x) 2 | . 2 4 4 4 4 6 5 4 4 1 . . . . . . Largest Inventory Capacity 25 | 8 25 25 25 25 25 25 25 25 25 25 5 5 5 5 5 15 Average Capacity 16 | 7 15 25 25 25 25 25 25 25 25 17 5 5 5 5 5 9 Most Carried 25 | 3 22 25 25 25 25 25 25 25 24 24 5 5 5 5 5 13 Average Carried 15 | 1 12 21 24 25 25 23 24 24 23 17 4 4 4 4 5 6 Final Capacity 25 | 8 25 25 25 25 25 25 25 25 25 5 5 5 5 5 5 5 Final Carried 25 | 3 22 25 25 25 25 25 25 25 24 5 5 5 5 5 5 5 Class Distribution -------------------- 58% | Scavenger-Mutant 36% | Mutant 4% | Commander-Mutant Dominant Class ---------------- Mutant | -10/Materials Mutant | -10/Mines Mutant | -9/Materials Scavenger-Mutant | -9/Mines Scavenger-Mutant | -9/Exiles Scavenger-Mutant | -8/Mines Scavenger-Mutant | -8/Materials Commander-Mutant | -8/Storage Scavenger-Mutant | -7/Factory Mutant | -7/Waste Mutant | -7/Factory Scavenger-Mutant | -6/Factory Scavenger-Mutant | -6/Extension Scavenger-Mutant | -6/Cetus Scavenger-Mutant | -6/Archives Scavenger-Mutant | -6/Hub_04(d) Resources | -11 -10 -10 -9 -9 -9 -8 -8 -8 -7 -7 -7 -6 -6 -6 -6 -6 ----------- Run | Yrd Mat Min Mat Min Exi Min Mat Sto Fac Was Fac Fac Ext Cet Arc Hub Matter Collected 4729 | 228 533 399 691 84 . 777 587 187 . . 29 565 300 138 17 194 Remotely . | . . . . . . . . . . . . . . . . . Salvage Created 5862 | 18 729 139 1026 95 . 422 1137 492 . . 25 606 809 214 . 150 Parts 340 | 3 51 10 66 13 . 36 45 24 . . 4 35 37 7 . 9 Haulers Intercepted 7 | . 1 . 4 . . . . 1 . . . . . . . 1 Recyclers Shooed 2 | . 1 . . . . . 1 . . . . . . . . . Parts Field Recycled 6 | . . . . . . . . . . . . 6 . . . . Retrieved Matter 40 | . . . . . . . . . . . . 40 . . . . Parts Self-Destructed . | . . . . . . . . . . . . . . . . . Prevented . | . . . . . . . . . . . . . . . . . Parts Restored . | . . . . . . . . . . . . . . . . . Kills | -11 -10 -10 -9 -9 -9 -8 -8 -8 -7 -7 -7 -6 -6 -6 -6 -6 ------- Run | Yrd Mat Min Mat Min Exi Min Mat Sto Fac Was Fac Fac Ext Cet Arc Hub Combat Hostiles Destroyed 134 | . 19 6 24 6 . 17 28 5 . . 4 13 9 2 . 1 Guns 79 | . 18 5 17 6 . 4 25 4 . . . . . . . . Cannons 23 | . . . . . . 1 2 1 . . 1 11 7 . . . AOE 24 | . . . 7 . . 11 . . . . 3 2 . . . 1 Classes Destroyed 18 | 1 7 1 3 . . 1 1 . . . 1 1 1 . . 1 Worker 10 | . 2 . 2 . . 3 2 . . . . 1 . . . . Builder 1 | . . . . . . . 1 . . . . . . . . . Tunneler 2 | 1 . . . . . . . . . . . 1 . . . . Hauler 7 | . 1 . 4 . . . . 1 . . . . . . . 1 Recycler 6 | . 1 . . . . 1 . 2 . . . 1 1 . . . Operator 4 | . 1 . . . . . 1 1 . . . 1 . . . . Watcher 5 | . 1 . 2 . . . 2 . . . . . . . . . Swarmer 56 | . 9 2 7 6 . 12 10 . . . 3 7 . . . . Grunt 45 | . 10 2 11 . . 3 16 1 . . . 1 1 . . . Brawler 1 | . . . 1 . . . . . . . . . . . . . Duelist 1 | . . . 1 . . . . . . . . . . . . . Protector 1 | . . . . . . . . . . . . . . . . 1 Sentry 14 | . . . 4 . . . 2 4 . . . . 4 . . . Specialist 2 | . . . . . . . . . . . . 2 . . . . Hunter 4 | . . . . . . 2 . . . . . . 2 . . . Programmer 4 | . . . . . . . . . . . 1 3 . . . . Behemoth 2 | . . . . . . . . . . . . . 2 . . . Cetus Guard 2 | . . . . . . . . . . . . . . 2 . . Assembled 2 | . . 2 . . . . . . . . . . . . . . Savage 1 | . . . . . . . . . . . . . . 1 . . Best Kill Streak 9 | 1 8 2 9 3 . 7 5 5 . . 4 4 2 2 . 1 Combat Bots Only 9 | . 3 2 9 3 . 6 5 3 . . 4 4 2 2 . 1 Max Kills in Single Turn 5 | 1 2 1 5 1 . 3 2 1 . . 2 2 1 1 . 1 Gunslinging 1 | . 1 . . . . . 1 . . . . . . . . . Exploded 5 | . . . 5 . . 3 . . . . 2 1 . . . 1 Melee . | . . . . . . . . . . . . . . . . . Uniques/NPCs Destroyed . | . . . . . . . . . . . . . . . . . Combat | -11 -10 -10 -9 -9 -9 -8 -8 -8 -7 -7 -7 -6 -6 -6 -6 -6 -------- Run | Yrd Mat Min Mat Min Exi Min Mat Sto Fac Was Fac Fac Ext Cet Arc Hub Hostile Shots Fired 1200 | . 102 69 115 24 . 88 142 55 . 7 21 165 282 43 22 65 Missed 373 | . 28 23 28 8 . 21 34 11 . 1 7 68 103 14 5 22 Hits 827 | . 74 46 87 16 . 67 108 44 . 6 14 97 179 29 17 43 Melee 10 | . . 4 . . . . . . . 6 . . . . . . Projectile 817 | . 74 42 87 16 . 67 108 44 . . 14 97 179 29 17 43 AOE 2 | . . . . . . . . . . . . . . . . 2 Critical Strikes 26 | . . . . . . 1 5 3 . 1 . 2 2 5 1 6 Damage Taken 11070 | . 659 681 1019 132 . 797 1388 629 . 284 228 1227 1716 564 410 1336 Core 1806 | . 133 105 189 10 . 123 69 60 . 162 67 170 149 125 . 444 Absorbed by Shields 1023 | . . . . . . . 92 96 . . . . 459 243 . 133 Redirected to Shielding 97 | . . . . . . . . . . . 19 62 16 . . . Ignored by Resistances 91 | . . . . . . . . . . . . . 49 42 . . Core Remaining (%) 53 | 100 . 4 . . . 19 . 76 . . 67 . . . . . Volleys Fired 509 | 1 77 37 87 12 . 34 95 21 . 2 12 41 49 14 8 19 Largest 2 | 2 2 2 2 2 . 2 2 2 . 1 1 1 1 1 1 2 Hottest 138 | 60 70 70 88 46 . 63 138 138 . 43 37 100 100 90 90 125 Shots Fired 836 | 2 154 64 174 24 . 52 187 37 . 2 12 41 50 13 7 17 Gun 649 | 2 154 64 170 24 . 36 165 31 . . . . . . . 3 Cannon 159 | . . . . . . 6 22 6 . . 10 35 50 13 7 10 Launcher 28 | . . . 4 . . 10 . . . 2 2 6 . . . 4 Special . | . . . . . . . . . . . . . . . . . Kinetic 381 | 1 77 31 108 24 . 36 85 6 . . 10 . . . . 3 Thermal 383 | 1 77 33 62 . . . 102 31 . . . 23 29 8 7 10 Explosive 24 | . . . 4 . . 10 . . . 2 2 2 . . . 4 Electromagnetic 48 | . . . . . . 6 . . . . . 16 21 5 . . Robot Hit Streak 24 | 1 22 24 14 3 . 6 17 13 . 8 15 6 13 16 2 4 Robot Miss Streak 8 | . 3 4 2 4 . 5 3 3 . . 1 8 2 3 3 3 Penetration Max 1 | . . . . . . . . . . . . . . . . 1 Secondary Targets 15 | . 5 1 . 3 . 2 3 1 . . . . . . . . Max Gunslinging Chain 1 | . 1 1 . 1 . 1 1 1 . . . . . . . . Shots Hit Robots 570 | 1 109 36 128 11 . 28 129 26 . 2 8 28 45 9 3 7 Core Hits 277 | 1 42 13 52 6 . 28 56 13 . 1 7 22 19 4 . 13 Critical Kills 4 | . 1 . 1 . . . . . . . . . 1 1 . . Critical Parts Destroyed 1 | . . . . . . . . . . . . . . . . 1 Critical Strikes 29 | . 5 2 7 . . . 8 3 . . . . 2 1 . 1 Burn 22 | . 4 2 6 . . . 7 3 . . . . . . . . Meltdown 2 | . . . . . . . . . . . . . 1 1 . . Destroy 3 | . 1 . 1 . . . . . . . . . . . . 1 Blast 1 | . . . . . . . 1 . . . . . . . . . Corrupt 1 | . . . . . . . . . . . . . 1 . . . Melee Attacks 4 | . . . . . . . 4 . . . . . . . . . Impact . | . . . . . . . . . . . . . . . . . Slashing 4 | . . . . . . . 4 . . . . . . . . . Piercing . | . . . . . . . . . . . . . . . . . Sneak Attacks . | . . . . . . . . . . . . . . . . . Combat Hostiles . | . . . . . . . . . . . . . . . . . Follow-up Attacks . | . . . . . . . . . . . . . . . . . Damage Inflicted 12744 | 11 1095 345 1920 163 . 1380 2562 516 . 712 494 1018 1375 298 125 730 Guns 6143 | 11 1092 345 1499 163 . 286 2182 457 . . . . . . . 108 Cannons 3625 | . . . . . . 162 380 59 . . 245 823 1375 298 125 158 Explosions 2959 | . . . 421 . . 932 . . . 712 249 189 . . . 456 Melee . | . . . . . . . . . . . . . . . . . Ramming 17 | . 3 . . . . . . . . . . 6 . . . 8 Kinetic 3364 | . 441 130 892 163 . 286 1040 59 . . 245 . . . . 108 Thermal 5613 | 11 651 215 607 . . 91 1522 457 . . . 630 955 191 125 158 Explosive 2868 | . . . 421 . . 841 . . . 712 249 189 . . . 456 Electromagnetic 882 | . . . . . . 162 . . . . . 193 420 107 . . Impact . | . . . . . . . . . . . . . . . . . Slashing . | . . . . . . . . . . . . . . . . . Piercing . | . . . . . . . . . . . . . . . . . Highest Corruption 34 | . 1 1 . . . . 2 5 . . 2 1 22 23 23 34 Average Corruption 7 | . 1 1 . . . . 2 3 . . 1 1 9 22 23 23 Corruption Purged 3 | . . . . . . . . . . . . . . . . 3 Corruption Blocked . | . . . . . . . . . . . . . . . . . Effects 145 | . 15 7 . . . . 4 14 . . 3 2 27 19 17 37 Message Errors 29 | . 5 . . . . . 2 3 . . 1 1 9 . 3 5 Matter Fused 30 | . 1 1 . . . . 1 2 . . . . 6 6 4 9 Heat Flow Errors 11 | . 3 1 . . . . . 2 . . . . . 3 1 1 Energy Discharges 20 | . 4 3 . . . . . 4 . . 1 . 1 4 1 2 Parts Rejected 4 | . . . . . . . . . . . . . . 2 1 1 Parts Fused 2 | . . . . . . . . . . . . 1 . 1 . . Data Loss (minor) 28 | . . 2 . . . . 1 3 . . 1 . 9 1 4 7 Data Loss (major) 6 | . . . . . . . . . . . . . 1 1 . 4 Misfires 4 | . 1 . . . . . . . . . . . 1 . 1 1 Alerts 1 | . . . . . . . . . . . . . . . . 1 Misdirections 1 | . . . . . . . . . . . . . . . . 1 Weapon Failures 9 | . 1 . . . . . . . . . . . . 1 2 5 Overload Shots . | . . . . . . . . . . . . . . . . . Overflow Damage 114 | . . . 17 . . 46 2 . . . 17 27 3 . . 2 Projectiles 28 | . . . . . . 15 2 . . . 8 . 3 . . . Explosions 86 | . . . 17 . . 31 . . . . 9 27 . . . 2 Melee . | . . . . . . . . . . . . . . . . . Knockbacks 12 | . . . . . . . 10 . . . 1 1 . . . . Impact 1 | . . . . . . . . . . . . 1 . . . . Kinetic 10 | . . . . . . . 9 . . . 1 . . . . . Secondary 1 | . . . . . . . 1 . . . . . . . . . Self-Inflicted Damage 155 | . . . . . . 116 . . . 26 10 3 . . . . Shots 6 | . . . . . . 4 . . . 1 1 . . . . . Rammed 5 | . 2 . . . . . . . . . . 2 . . . 1 Targets Rammed 5 | . 2 . . . . . . . . . . 2 . . . 1 Kicked . | . . . . . . . . . . . . . . . . . Crushed . | . . . . . . . . . . . . . . . . . Highest Temperature 306 | 20 182 306 236 . . . 243 296 . . 4 245 . 43 . 56 Average Temperature 67 | 15 58 115 16 . . . 67 123 . . 4 69 . 43 . 56 Received Heat Transfer 2439 | . 174 201 438 . . 99 688 199 . . . 141 334 56 72 37 Effects 1 | . . 1 . . . . . . . . . . . . . . Interference 1 | . . 1 . . . . . . . . . . . . . . Siege Activations . | . . . . . . . . . . . . . . . . . Martial Activations . | . . . . . . . . . . . . . . . . . Shielding Activations . | . . . . . . . . . . . . . . . . . Robots Disrupted . | . . . . . . . . . . . . . . . . . Combat Hostiles . | . . . . . . . . . . . . . . . . . Robots Corrupted 5 | . . . . . . 1 1 . . . . . 2 1 . . Combat Hostiles 5 | . . . . . . 1 1 . . . . . 2 1 . . Parts Fried 5 | . . . . . . 1 1 . . . . 1 2 . . . Impact Corruptions 1 | . . . . . . . 1 . . . . . . . . . Robots Melted 5 | . 2 1 . . . . . . . . . . 1 1 . . Combat Hostiles 3 | . 1 1 . . . . . . . . . . . 1 . . Parts Melted 22 | . 2 . 4 . . . 6 3 . . . 3 3 1 . . Heat Transferred 12248 | 25 2079 707 2146 . . 50 3256 1110 . . . 775 1350 300 200 250 Parts Sabotaged . | . . . . . . . . . . . . . . . . . Parts Stolen . | . . . . . . . . . . . . . . . . . Parts Stripped . | . . . . . . . . . . . . . . . . . Power Chain Reactions 2 | . . . . . . 1 . . . . . 1 . . . . Alert | -11 -10 -10 -9 -9 -9 -8 -8 -8 -7 -7 -7 -6 -6 -6 -6 -6 ------- Run | Yrd Mat Min Mat Min Exi Min Mat Sto Fac Was Fac Fac Ext Cet Arc Hub Maximum Alert Level 2 | . . . 1 . . 1 . 1 . . . . 2 2 1 2 Low Security (%) 81 | 100 100 100 46 100 . 77 100 81 100 100 100 100 59 . 16 80 Level 1 15 | . . . 53 . . 22 . 18 . . . . 30 71 83 . Level 2 2 | . . . . . . . . . . . . . 10 28 . 18 Level 3 . | . . . . . . . . . . . . . . . . . Level 4 . | . . . . . . . . . . . . . . . . . Level 5 . | . . . . . . . . . . . . . . . . . High Security . | . . . . . . . . . . . . . . . . . Max Security . | . . . . . . . . . . . . . . . . . Peak Influence 576 | 5 196 56 364 199 . 263 177 249 88 21 124 148 443 486 307 576 Initial 230 | . . 13 . 139 . . 63 69 86 16 . 39 4 230 171 61 Average 112 | . 109 8 165 91 . 121 65 121 67 4 45 40 172 352 238 194 Influence Increases 6972 | 5 544 182 687 140 . 533 780 569 22 21 241 456 1211 476 176 929 Destroy 0b10 Robot/C 3800 | . 380 140 480 120 . 340 560 260 . . 80 260 580 220 80 300 Destroy 0b10 Robot/NC 240 | 5 30 . 40 . . 20 30 25 . . . 20 15 10 . 45 Destroy Leader 720 | . 74 30 102 20 . 70 94 82 . . 20 60 74 10 . 84 Allied During Kill 1273 | . . 12 . . . . . 139 . . . . 454 224 80 364 Successful Hack 247 | . . . 16 . . . 25 15 22 . 47 36 65 . . 21 Select Force Hacks 60 | . 60 . . . . . . . . . . . . . . . Disable Machine 120 | . . . . . . . 30 45 . . 15 . . . 15 15 Destroy Structure 227 | . . . 19 . . 73 11 3 . 21 4 20 23 12 1 40 Partial Spotted 60 | . . . . . . . . . . . 15 15 . . . 30 Lose Combat Pursuer 225 | . . . 30 . . 30 30 . . . 60 45 . . . 30 Influence Decreases 6464 | 5 510 216 329 498 . 369 779 542 166 69 160 527 809 460 427 598 Entered New Map 1178 | . . 21 . 219 . . 101 96 106 32 . 42 6 182 257 116 Time Decay 4169 | 5 500 145 289 279 . 319 528 326 60 20 160 449 429 198 160 302 Lost Part 452 | . 10 30 40 . . 50 95 40 . 17 . 30 70 20 10 40 Lost Ally 460 | . . 20 . . . . . 80 . . . 6 154 60 . 140 Purge Threat 205 | . . . . . . . 55 . . . . . 150 . . . Squads Dispatched 27 | . 4 . 1 . . . 2 2 . . 5 4 3 1 . 5 Investigation 10 | . 3 . . . . . 1 1 . . 1 . 1 1 . 2 Extermination 6 | . . . . . . . . . . . 1 3 . . . 2 Reinforcement 8 | . 1 . 1 . . . 1 1 . . . 1 2 . . 1 Assault . | . . . . . . . . . . . . . . . . . Garrison 3 | . . . . . . . . . . . 3 . . . . . Intercept . | . . . . . . . . . . . . . . . . . Searches Triggered . | . . . . . . . . . . . . . . . . . Construction Impeded . | . . . . . . . . . . . . . . . . . Haulers Reinforced . | . . . . . . . . . . . . . . . . . Active Scanning Responses . | . . . . . . . . . . . . . . . . . Cargo Convoy Interrupts . | . . . . . . . . . . . . . . . . . Stealth | -11 -10 -10 -9 -9 -9 -8 -8 -8 -7 -7 -7 -6 -6 -6 -6 -6 --------- Run | Yrd Mat Min Mat Min Exi Min Mat Sto Fac Was Fac Fac Ext Cet Arc Hub Distress Signals 18 | . 3 1 1 . . . 4 2 . . . . 1 2 . 4 Communications Jammed . | . . . . . . . . . . . . . . . . . Distress Signals . | . . . . . . . . . . . . . . . . . Times Spotted 267 | . 31 13 30 7 . 20 42 15 . 6 9 27 31 10 10 16 Peak Tracking Total 10 | . 5 4 8 3 . 5 6 5 . 6 6 6 8 5 2 10 Tactical Retreats 12 | . . 3 1 . . 1 2 . . . 2 2 . . . 1 Traps | -11 -10 -10 -9 -9 -9 -8 -8 -8 -7 -7 -7 -6 -6 -6 -6 -6 ------- Run | Yrd Mat Min Mat Min Exi Min Mat Sto Fac Was Fac Fac Ext Cet Arc Hub Traps Triggered 12 | . 2 . . . . . 2 1 1 . 1 2 2 . . 1 Indirectly . | . . . . . . . . . . . . . . . . . Trap Hack Attempts . | . . . . . . . . . . . . . . . . . Triggered . | . . . . . . . . . . . . . . . . . Disarmed . | . . . . . . . . . . . . . . . . . Reprogrammed . | . . . . . . . . . . . . . . . . . Reused . | . . . . . . . . . . . . . . . . . Traps Extracted . | . . . . . . . . . . . . . . . . . Installed . | . . . . . . . . . . . . . . . . . Triggered . | . . . . . . . . . . . . . . . . . Machines | -11 -10 -10 -9 -9 -9 -8 -8 -8 -7 -7 -7 -6 -6 -6 -6 -6 ---------- Run | Yrd Mat Min Mat Min Exi Min Mat Sto Fac Was Fac Fac Ext Cet Arc Hub Machines Disabled 10 | . 1 . . . . . 2 3 . . 1 . 1 . 1 1 Max in Single Turn 1 | . 1 . . . . . 1 1 . . 1 . . . 1 . Network Hub 1 | . . . . . . . . . . . . . . . . 1 Machines Repaired . | . . . . . . . . . . . . . . . . . Machines Dismantled . | . . . . . . . . . . . . . . . . . Machines Sabotaged . | . . . . . . . . . . . . . . . . . Overloaded Fab Kills . | . . . . . . . . . . . . . . . . . Hacking | -11 -10 -10 -9 -9 -9 -8 -8 -8 -7 -7 -7 -6 -6 -6 -6 -6 --------- Run | Yrd Mat Min Mat Min Exi Min Mat Sto Fac Was Fac Fac Ext Cet Arc Hub Machines Accessed 59 | . 9 . 7 . 1 . 5 7 2 . 6 7 10 3 . 2 Terminals 49 | . 7 . 5 . . . 5 7 1 . 5 4 10 3 . 2 Fabricators 2 | . . . . . . . . . 1 . . 1 . . . . Repair Stations . | . . . . . . . . . . . . . . . . . Recycling Units 5 | . 2 . 2 . . . . . . . . 1 . . . . Scanalyzers 1 | . . . . . . . . . . . . 1 . . . . Garrison Access 1 | . . . . . . . . . . . 1 . . . . . Total Hacks 152 | . 19 . 15 . 1 . 21 15 6 . 15 15 34 5 . 6 Successful 69 | . 4 . 11 . 1 . 13 7 2 . 3 8 16 1 . 3 Failed 83 | . 15 . 4 . . . 8 8 4 . 12 7 18 4 . 3 Catastrophic 19 | . 3 . 2 . . . 2 4 1 . 2 2 1 1 . 1 Database Lockouts . | . . . . . . . . . . . . . . . . . Manual 71 | . 9 . 10 . . . 15 8 2 . 4 4 16 1 . 2 Terminals 131 | . 12 . 11 . . . 21 15 5 . 13 9 34 5 . 6 Fabricators 4 | . . . . . . . . . 1 . . 3 . . . . Repair Stations . | . . . . . . . . . . . . . . . . . Recycling Units 12 | . 7 . 4 . . . . . . . . 1 . . . . Scanalyzers 2 | . . . . . . . . . . . . 2 . . . . Garrison Access 2 | . . . . . . . . . . . 2 . . . . . Terminal Hacks 36 | . 1 . 2 . 1 . 8 4 . . 3 4 11 1 . 1 Record 2 | . . . . . 1 . . . . . . . . 1 . . Robot Schematic 2 | . . . . . . . . . . . . 1 . . . 1 Robot Analysis 6 | . . . 1 . . . 2 . . . . . 3 . . . Open Door 5 | . . . . . . . . 3 . . . . 2 . . . Branch Access Points 3 | . 1 . . . . . . . . . 1 1 . . . . Emergency Access Points 1 | . . . . . . . 1 . . . . . . . . . Alert Level 2 | . . . . . . . 1 . . . . 1 . . . . Unreport Threat 3 | . . . . . . . 1 . . . . . 2 . . . Locate Traps 4 | . . . . . . . . 1 . . . . 3 . . . Hauler Manifests 2 | . . . 1 . . . 1 . . . . . . . . . Registered Components 3 | . . . . . . . 1 . . . 1 . 1 . . . Zone Layout 3 | . . . . . . . 1 . . . 1 1 . . . . Fabricator Hacks 2 | . . . . . . . . . 1 . . 1 . . . . Load Schematic 1 | . . . . . . . . . . . . 1 . . . . Build 1 | . . . . . . . . . 1 . . . . . . . Repair Station Hacks . | . . . . . . . . . . . . . . . . . Recycling Unit Hacks 6 | . 1 . 4 . . . . . . . . 1 . . . . Report Inventory 5 | . 1 . 3 . . . . . . . . 1 . . . . Retrieve Components 1 | . . . 1 . . . . . . . . . . . . . Scanalyzer 1 | . . . . . . . . . . . . 1 . . . . Retrieve Study 1 | . . . . . . . . . . . . 1 . . . . Garrison Access Hacks . | . . . . . . . . . . . . . . . . . Unauthorized Hacks 24 | . 2 . 5 . . . 5 3 1 . . 1 5 . . 2 Terminals 22 | . . . 5 . . . 5 3 1 . . 1 5 . . 2 Assimilate 1 | . . . . . . . . . . . . 1 . . . . Botnet 21 | . . . 5 . . . 5 3 1 . . . 5 . . 2 Fabricators . | . . . . . . . . . . . . . . . . . Repair Stations . | . . . . . . . . . . . . . . . . . Recycling Units 2 | . 2 . . . . . . . . . . . . . . . Tunnel 2 | . 2 . . . . . . . . . . . . . . . Scanalyzers . | . . . . . . . . . . . . . . . . . Garrison Access . | . . . . . . . . . . . . . . . . . Data Cores Recovered 3 | . . . . . . . . 2 . . . 1 . . . . Used . | . . . . . . . . . . . . . . . . . Hacking Detections 50 | . 8 . 4 . . . 4 6 2 . 6 5 9 4 . 2 Full Trace Events 4 | . 1 . . . . . . . . . . . 1 1 . 1 Feedback Events 1 | . . . . . . . . . . . . . . 1 . . Corruption 1 | . . . . . . . . . . . . . . 1 . . Feedback Blocked . | . . . . . . . . . . . . . . . . . Robot Schematics Acquired 2 | . . . . . . . . . . . . 1 . . . 1 Robots Built . | . . . . . . . . . . . . . . . . . Authchips . | . . . . . . . . . . . . . . . . . Time . | . . . . . . . . . . . . . . . . . Total Robot Build Rating . | . . . . . . . . . . . . . . . . . Part Schematics Acquired . | . . . . . . . . . . . . . . . . . Parts Built . | . . . . . . . . . . . . . . . . . Authchips . | . . . . . . . . . . . . . . . . . Time 42 | . . . . . . . . . 42 . . . . . . . Total Part Build Rating . | . . . . . . . . . . . . . . . . . Part Studies Acquired 1 | . . . . . . . . . . . . 1 . . . . Parts Repaired . | . . . . . . . . . . . . . . . . . Time . | . . . . . . . . . . . . . . . . . Parts Recycled . | . . . . . . . . . . . . . . . . . Recycled Matter . | . . . . . . . . . . . . . . . . . Retrieved Matter . | . . . . . . . . . . . . . . . . . Retrieved Components 1 | . . . 1 . . . . . . . . . . . . . Parts Scanalyzed . | . . . . . . . . . . . . . . . . . Part Schematics Acquired . | . . . . . . . . . . . . . . . . . Parts Damaged . | . . . . . . . . . . . . . . . . . Bothacking | -11 -10 -10 -9 -9 -9 -8 -8 -8 -7 -7 -7 -6 -6 -6 -6 -6 ------------ Run | Yrd Mat Min Mat Min Exi Min Mat Sto Fac Was Fac Fac Ext Cet Arc Hub Used RIF Installer . | . . . . . . . . . . . . . . . . . Robots Hacked . | . . . . . . . . . . . . . . . . . Non-combat . | . . . . . . . . . . . . . . . . . Combat . | . . . . . . . . . . . . . . . . . Robot Hacks Applied . | . . . . . . . . . . . . . . . . . Relay Couplers Released . | . . . . . . . . . . . . . . . . . Fabnet Peak Effective % . | . . . . . . . . . . . . . . . . . Robots Rewired 20 | . . . . . . . . . . . . . 20 . . . Allies Hacked . | . . . . . . . . . . . . . . . . . Hacks Repelled . | . . . . . . . . . . . . . . . . . Allies | -11 -10 -10 -9 -9 -9 -8 -8 -8 -7 -7 -7 -6 -6 -6 -6 -6 -------- Run | Yrd Mat Min Mat Min Exi Min Mat Sto Fac Was Fac Fac Ext Cet Arc Hub Total Allies 39 | . . 2 . . . . . 10 . . . 1 21 5 . . Largest Group 14 | . . 2 . . . . . 10 . . . 1 14 12 10 10 Highest-Rated Group 814 | . . 38 . . . . . 173 . . . 26 514 814 632 632 Highest-Rated Ally 159 | . . 31 . . . . . 29 . . . 26 159 143 96 96 Total Orders 2 | . . . . . . . . 2 . . . . . . . . STAY 2 | . . . . . . . . 2 . . . . . . . . Ally Attacks 409 | . . 10 . . . . . 46 . . . . 152 90 27 84 Total Damage 9660 | . . 142 . . . . . 529 . . . . 3066 2275 802 2846 Kills 72 | . . 3 . . . . . 9 . . . . 22 12 4 22 Allies Corrupted 4 | . . . . . . . . . . . . . 2 . . 2 Allies Melted . | . . . . . . . . . . . . . . . . . Intel | -11 -10 -10 -9 -9 -9 -8 -8 -8 -7 -7 -7 -6 -6 -6 -6 -6 ------- Run | Yrd Mat Min Mat Min Exi Min Mat Sto Fac Was Fac Fac Ext Cet Arc Hub Active Infowar (turns) 2138 | 51 1587 110 53 . . . . . . . 1 336 . . . . Optics 53 | . . . 53 . . . . . . . . . . . . . Seismic 1748 | 51 1587 110 . . . . . . . . . . . . . . Machine Analysis 336 | . . . . . . . . . . . . 336 . . . . ECM 3 | . . . . . . . . . . . 1 2 . . . . Robot Analysis Total 6 | . . . 1 . . . 2 . . . . . 3 . . . Derelict Logs Recovered 3 | . . 1 . 2 . . . . . . . . . . . . Drone Launches . | . . . . . . . . . . . . . . . . . Drone Recoveries . | . . . . . . . . . . . . . . . . . Exploration | -11 -10 -10 -9 -9 -9 -8 -8 -8 -7 -7 -7 -6 -6 -6 -6 -6 ------------- Run | Yrd Mat Min Mat Min Exi Min Mat Sto Fac Was Fac Fac Ext Cet Arc Hub Turns Passed 12336 | 109 1587 816 1075 663 278 873 1588 724 138 107 476 1357 1148 400 324 673 Spaces Moved 6970 | 58 795 470 479 438 199 403 710 363 87 106 614 961 544 204 178 361 Core 345 | 4 . . . . . . . . . 53 244 . . . . 44 Treads 1652 | 54 460 . . . . . . . . . . 1 438 204 178 317 Legs 55 | . . . . . . . . . . . . 55 . . . . Wheels 4024 | . 335 470 479 438 199 403 710 363 87 53 . 381 106 . . . Hover 894 | . . . . . . . . . . . 370 524 . . . . Flight . | . . . . . . . . . . . . . . . . . Fastest Speed 46 | 50 110 140 140 140 140 140 125 135 150 50 46 46 101 160 160 50 Average Speed 139 | 152 161 146 141 140 140 178 156 151 150 88 69 109 150 160 160 166 Slowest Speed 320 | 160 240 200 155 140 140 230 230 230 150 175 106 240 320 160 160 240 Overloaded Moves . | . . . . . . . . . . . . . . . . . Propulsion Burnouts . | . . . . . . . . . . . . . . . . . Robots Hopped . | . . . . . . . . . . . . . . . . . Potential Cave-ins 2 | . . . . . . . . . . 2 . . . . . . Cave-ins Triggered . | . . . . . . . . . . . . . . . . . Exploration Rate (%) 56 | 4 94 77 37 89 59 83 51 61 3 69 17 25 78 69 96 40 Regions Visited 16 Branch Regions 9 Pre-discovered Areas 3 | . 2 . . 1 . . . . . . . . . . . . Known Exits Taken 6 | . 1 1 1 . . . 1 1 . . . 1 . . . . Unknown Exits Taken 8 | 1 . . . 1 1 1 . . . . 1 . 1 1 1 . Scrap Searched 6 | . . 2 . 1 . 3 . . . . . . . . . . Spaces Dug 47 | . . . . . . 37 4 1 . . . 5 . . . . Terrain Destroyed 218 | . . . 14 . . 100 6 2 . 35 4 26 2 . . 29 Melee 4 | . . . . . . . 4 . . . . . . . . . Projectile 12 | . . . . . . . 2 2 . . . . 2 . . 6 AOE 202 | . . . 14 . . 100 . . . 35 4 26 . . . 23 Terrain Rammed . | . . . . . . . . . . . . . . . . . Walls Destroyed . | . . . . . . . . . . . . . . . . . Machines Disabled . | . . . . . . . . . . . . . . . . . Actions | -11 -10 -10 -9 -9 -9 -8 -8 -8 -7 -7 -7 -6 -6 -6 -6 -6 --------- Run | Yrd Mat Min Mat Min Exi Min Mat Sto Fac Was Fac Fac Ext Cet Arc Hub Total 8748 | 73 963 538 729 469 198 506 996 502 95 114 650 1214 822 262 209 408 Wait 594 | 5 44 4 62 16 . 21 124 76 . 2 4 136 44 34 17 5 Move 6955 | 57 794 469 478 437 198 402 709 362 87 105 613 960 543 203 177 361 Hop . | . . . . . . . . . . . . . . . . . Pick Up 120 | 3 25 11 24 2 . 11 16 10 1 1 2 3 3 . . 8 Fast Attach 102 | 7 2 1 6 . . 1 6 6 2 2 10 27 16 6 3 7 Attach 49 | . 1 8 7 . . 9 10 3 2 1 2 2 2 1 . 1 Detach 12 | . . . 1 . . 3 . . . . 2 1 3 1 . 1 Swap 98 | . 7 7 30 . . 16 15 7 1 1 . 3 9 1 1 . Drop 148 | . 11 1 34 2 . 9 17 15 2 . 5 23 19 2 3 5 Fire 509 | 1 77 37 87 12 . 34 95 21 . 2 12 41 49 14 8 19 Melee 4 | . . . . . . . 4 . . . . . . . . . Ram 2 | . . . . . . . . . . . . 2 . . . . Kick . | . . . . . . . . . . . . . . . . . Crush 3 | . 2 . . . . . . . . . . . . . . 1 Escape Stasis 24 | . . . . . . . . . . . . 16 8 . . . Rewire 128 | . . . . . . . . 2 . . . . 126 . . . Trap . | . . . . . . . . . . . . . . . . . Miscellaneous . | . . . . . . . . . . . . . . . . . Route ------- -11/Scrapyard -10/Materials (discovered 4 exits: *Mat x3 / *Min) -10/Mines -9/Materials -9/Mines (discovered 3 exits: *Mat x2 / *Exi) -9/Exiles -8/Mines -8/Materials (discovered 3 exits: *Fac x2 / *Sto) -8/Storage -7/Factory -7/Waste -7/Factory (discovered 3 exits: *Fac / *Low x2) -6/Factory (discovered 5 exits: [*Fac] / Low x2 / *Ext x2) -6/Extension (discovered 2 exits: [*Fac] / *Cet) -6/Cetus (discovered 2 exits: [*Fac] / *Arc) -6/Archives (discovered 3 exits: [*Fac] / *Hub x2) -6/Hub_04(d) (discovered 1 exit: [*Fac]) History --------- Turn | Location | Event 37 | -11/Scrapyard | Discovered new exit (range 15) 110 | -11/Scrapyard | Entered Materials 301 | -10/Materials | Build established: Mutant 678 | -10/Materials | Discovered new exit (range 14) 790 | -10/Materials | Discovered new exit (range 8) 1088 | -10/Materials | Core integrity fell below 50% 1118 | -10/Materials | Discovered new exit (range 4) 1273 | -10/Materials | Discovered new exit (range 5) 1355 | -10/Materials | Identified exit to Mines 1697 | -10/Materials | Entered Mines 1769 | -10/Mines | Assembled infested the area 1774 | -10/Mines | Assisted by a Guerilla fighting off Assembled 1861 | -10/Mines | Lost 4 parts (1p1n1u1w) 1952 | -10/Mines | Core integrity fell below 20% 2328 | -10/Mines | Learned 4 Materials zone layouts 2507 | -10/Mines | Discovered new exit (range 4) 2513 | -10/Mines | Identified exit to Materials 2513 | -10/Mines | Entered Materials 2513 | -9/Materials | Evolved 2 slots: Utility x2 2514 | -9/Materials | Identified exit to Mines 2984 | -9/Materials | Destroyed 9 combat bots 3522 | -9/Materials | Build established: Scavenger-Mutant 3588 | -9/Materials | Entered Mines 3595 | -9/Mines | Met a Derelict bent on vengeance 3609 | -9/Mines | Learned location of Recycling (-8) 3890 | -9/Mines | Learned Materials terminal intel 4000 | -9/Mines | Discovered new exit (range 14) 4046 | -9/Mines | Received a Rocket Launcher from a helpful Derelict 4199 | -9/Mines | Discovered new exit (range 11) 4245 | -9/Mines | Deemed a non-threat by the Exiles lab entrance 4245 | -9/Mines | Discovered new exit (range 5) 4251 | -9/Mines | Entered Exiles 4251 | -9/Exiles | Found Exiles lab abandoned 4516 | -9/Exiles | Discovered new exit (range 10) 4529 | -9/Exiles | Entered Mines 4582 | -8/Mines | Core integrity fell below 50% 4894 | -8/Mines | Lost 3 parts (1p1n1u) 5107 | -8/Mines | Core integrity fell below 20% 5285 | -8/Mines | Discovered new exit (range 7) 5402 | -8/Mines | Entered Materials 5402 | -8/Materials | Evolved 2 slots: Propulsion x1, Utility x1 5403 | -8/Materials | Loaded intel: 12 terminal locations 5685 | -8/Materials | Lost 3 parts (2u1w) 5942 | -8/Materials | Lost 3 parts (2n1w) 5981 | -8/Materials | Discovered new exit (range 14) 6727 | -8/Materials | Discovered new exit (range 16) 6760 | -8/Materials | Discovered new exit (range 10) 6783 | -8/Materials | Identified exit to Storage 6805 | -8/Materials | Identified exit to Factory 6990 | -8/Materials | Entered Storage 7196 | -8/Storage | Lost 3 parts (2n1u) 7318 | -8/Storage | Assisted by bots powering up and referring to "LRC-V3" 7565 | -8/Storage | Lost 3 allies 7621 | -8/Storage | Discovered exit to Factory (range 12) 7622 | -8/Storage | Build established: Commander-Mutant 7714 | -8/Storage | Entered Factory 7714 | -7/Factory | Evolved 2 slots: Power x1, Utility x1 7852 | -7/Factory | Sucked down chute 7852 | -7/Factory | Entered Waste 7865 | -7/Waste | Spotted C-40 Crusher 7866 | -7/Waste | Spotted C-40 Crusher 7878 | -7/Waste | Crushed by Compactor (1 part destroyed, 1 dropped) 7882 | -7/Waste | Spotted C-40 Crusher 7897 | -7/Waste | Spotted C-40 Crusher 7901 | -7/Waste | Spotted C-40 Crusher 7915 | -7/Waste | Crushed by Compactor (1 part destroyed, 2 dropped) 7920 | -7/Waste | Crushed by Compactor (1 part destroyed, 2 dropped) 7922 | -7/Waste | Released all parts (4) 7931 | -7/Waste | Crushed by Compactor (1 part destroyed) 7935 | -7/Waste | Crushed by Compactor (1 part destroyed) 7944 | -7/Waste | Spotted C-40 Crusher 7951 | -7/Waste | Discovered new exit (range 13) 7959 | -7/Waste | Entered Factory 7966 | -7/Factory | Lost 5 parts (1p2n2w) 8028 | -7/Factory | Discovered new exit (range 4) 8100 | -7/Factory | Discovered new exit (range 5) 8117 | -7/Factory | Identified exit to Lower Caves 8156 | -7/Factory | Garrison activated, responded to threat 8159 | -7/Factory | Build established: Mutant 8334 | -7/Factory | Discovered new exit (range 16) 8435 | -7/Factory | Entered another Factory area 8435 | -6/Factory | Evolved 2 slots: Utility x2 9053 | -6/Factory | Build established: Scavenger-Mutant 9265 | -6/Factory | Identified exit to Lower Caves 9265 | -6/Factory | Identified exit to Extension 9705 | -6/Factory | Discovered new exit (range 12) 9792 | -6/Factory | Entered Extension 10015 | -6/Extension | Lost 3 parts (2n1u) 10129 | -6/Extension | Rescued A7 10363 | -6/Extension | Spotted B-75 Beast 10394 | -6/Extension | Destroyed B-75 Beast 10400 | -6/Extension | Spotted B-75 Beast 10424 | -6/Extension | Destroyed B-75 Beast 10443 | -6/Extension | System corruption reached 10% 10458 | -6/Extension | Lost 4 parts (1n3u) 10751 | -6/Extension | Lost 3 allies 10859 | -6/Extension | Rescued a captive Derelict 10904 | -6/Extension | Discovered new exit (range 10) 10906 | -6/Extension | Discovered new exit (range 6) 10940 | -6/Extension | Entered Cetus 10940 | -6/Cetus | Accompanied by 11 allies (A7) 10945 | -6/Cetus | Acquired a Cetus Manufacturing Module code from A7 10961 | -6/Cetus | Spotted Cetus Guard 10961 | -6/Cetus | Spotted Cetus Guard 10965 | -6/Cetus | Spotted Cetus Guard 10966 | -6/Cetus | Spotted Cetus Guard 10970 | -6/Cetus | Destroyed Cetus Guard 10977 | -6/Cetus | Destroyed Cetus Guard 10989 | -6/Cetus | Allies destroyed Cetus Guard 11002 | -6/Cetus | Allies destroyed Cetus Guard 11032 | -6/Cetus | Lost 4 allies 11062 | -6/Cetus | Started Cetus Manufacturing Module 11087 | -6/Cetus | Manufactured an Enhanced Grunt 11112 | -6/Cetus | Manufactured an Enhanced Grunt 11137 | -6/Cetus | Manufactured an Enhanced Grunt 11155 | -6/Cetus | Discovered new exit (range 15) 11162 | -6/Cetus | Manufactured an Enhanced Grunt 11187 | -6/Cetus | Manufactured an Enhanced Grunt 11198 | -6/Cetus | Spotted Cetus Guard 11199 | -6/Cetus | Spotted Cetus Guard 11202 | -6/Cetus | Spotted Cetus Guard 11203 | -6/Cetus | Spotted Cetus Guard 11218 | -6/Cetus | Allies destroyed Cetus Guard 11220 | -6/Cetus | Core integrity fell below 50% 11225 | -6/Cetus | Allies destroyed Cetus Guard 11230 | -6/Cetus | Discovered new exit (range 16) 11232 | -6/Cetus | Allies destroyed Cetus Guard 11233 | -6/Cetus | Allies destroyed Cetus Guard 11246 | -6/Cetus | Met Revision 17 11340 | -6/Cetus | Entered Archives 11340 | -6/Archives | Accompanied by 11 allies (A7) 11399 | -6/Archives | Discovered new exit (range 15) 11422 | -6/Archives | Unable to access archive contents 11448 | -6/Archives | Unable to access archive contents 11469 | -6/Archives | Discovered new exit (range 16) 11527 | -6/Archives | Discovered new exit (range 15) 11664 | -6/Archives | Entered Hub_04(d) 11664 | -6/Hub_04(d) | Accompanied by 10 allies 11687 | -6/Hub_04(d) | Discovered new exit (range 16) 12253 | -6/Hub_04(d) | Network Hub disabled 12266 | -6/Hub_04(d) | Spotted Lightning 12276 | -6/Hub_04(d) | Spotted Lightning 12279 | -6/Hub_04(d) | Spotted Lightning 12284 | -6/Hub_04(d) | Lost 4 allies 12310 | -6/Hub_04(d) | Spotted Lightning 12312 | -6/Hub_04(d) | Lost 4 parts (1p2u1w) 12315 | -6/Hub_04(d) | System corruption reached 30% 12315 | -6/Hub_04(d) | Released all parts (12) 12328 | -6/Hub_04(d) | Core integrity fell below 20% 12330 | -6/Hub_04(d) | Lost 4 allies 12334 | -6/Hub_04(d) | Spotted Lightning 12335 | -6/Hub_04(d) | Spotted Lightning 12337 | -6/Hub_04(d) | Destroyed by Lightning with EMDS Last Messages --------------- 12315_ Released Centrium Medium Armor Plating. 12315_ Released Adv. Heat Sink. 12315_ Released Imp. Cryofiber Web. 12315_ Released Hvy. Missile Launcher. 12317_ EMDS Slug penetrates Wall. 12321_ Penetrated by EMDS Slug. 12322_ EMDS Slug penetrates Wall. 12324_ A-15 Conveyor exits Transfer Station. 12324_ K-01 Serf exits Transfer Station. 12324_ T-07 Excavator exits Transfer Station. 12327_ EMDS Slug penetrates Wall. 12328_ Terminal disabled. 12328_ EMDS Slug penetrates Wall. 12329_ System corrupted: Component data lost. 12330_ EMDS Slug penetrates Wall. 12335_ EMDS Slug penetrates Earth. 12335_ W-25 Informer sends out distress signal. 12336_ The unstable cave ceiling collapses. 12336_ Penetrated by EMDS Slug. Map ----- +----------------------------------------------------+ | ??????# " ????? """" #???? #????????? | | ?# ? ?+ ?????? #????? ######???? | | ?# ####""##/###???? ?????? # ####? | | ?# #######/#########+## """#? | | ?# = % ] "#? | | ?# % !!! ! "#? | | ?# % ! ]/=[! "#? | | ?# %%[ =!!########""#######/##/ """#? | | ?# =%%%!! *!]#?# "# ! # ####? | | ## !=%=% !=### "# "" ######???? | | [%==!= / ;# "#????????? | | ! * % ###" ##### ;# T"#????????? | | |%=###### " " " ;# """#????????? | | ]= # " " ; ;# "" #????????? | | ! # """""""";;;; ;# #????????? | | # " ;w h ;# #????????? | | # " ; ;# #????????? | | # # " ; %= ;#####+####????????? | | # # " h ; #??# #???????????? | | " """% = h #??# #???????????? | | " ="! [ ! = ##?# #???????????? | | " % !! ! # ### ##??????????? | | """""""]% %!! #??????????? | | == "" %= % %! #??????????? | | "" * /===%! #??????????? | | "" % * @## #??????????? | | " """"";;;;; # h ######??????????? | | " " i #???????????????? | | # # # ###???????????????? | | ??/################# ###??????????????????? | | ???????????????????# #????????????????????? | | ??????????????????? ????????????????????? | | ??????????????????? ????????????????????? | | ??????????????????? ???????????????????? | | ??????????????????? ????????????????????? | | ??????????????????? ???????????????????? | | ??????????????????? ???????????????????? | | ??????????????????? ???????????????????? | | ??????????????????? ????????????????????? | | ???????????????????????????????????????????? | | ???????????????????????????????????????????? | | ???????????????????????????????????????????? | | ???????????????????????????????????????????? | | ???????????????????????????????????????????? | | ???????????????????????????????????????????? | | ???????????????????????????????????????????? | | ???????????????????????????????????????????? | | ???????????????????????????????????????????? | | ???????????????????????????????????????????? | | ???????????????????????????????????????????? | +----------------------------------------------------+ Best States ------------- Heat Dissipation 113 Energy Generation 39 Energy Capacity 565 Matter Stores 300 Matter Capacity 300 Sight Range 18 Terrain Scan Density 110 ECM Strength 2 Base Temperature (-) 150 Corruption Containment 8 Armor Coverage 900 Resistance: TH 15 Utility Shielding 66 Phase Shifting 5 Evasion (%) 55 Targeting Accuracy 8 Melee Accuracy 6 Target Analysis 5 Recoil Reduction 3 Particle Charging 20 Offensive Hacking 20 Item Schematics ----------------- None Robot Schematics ------------------ G-47 Trooper | -6/Factory | Hacked X-67 Chaingunner | -6/Hub_04(d) | Hacked Fabricated ------------ Nothing Repaired ---------- Nothing Studied --------- Hpw. Shock Rifle | -6/Factory | Hacked Alien Tech Used ----------------- None Achievements -------------- None Challenges ------------ None Game ------ Seed DisruptionShockboltSpoofer Manual? 0 Play Time 01:57:10 Cumulative 113.5 hours Start 2026.03.12 @ 11:51:34 End 2026.03.12 @ 13:51:33 Sessions 1 Manual Loads 0 Difficulty Rogue Special Mode None Game No. 98 Rogue 98 Adventurer 0 Explorer 0 Win Type - Total 2 Types 2/0/0/0/0/0/0/0/0/0 Lore% 64 Gallery% 52 Achievement% 43 Wizard Run 0 Options --------- Layout 2 ASCII 0 Keyboard 0 Movement Mouse Keybinds 0 Fullscreen 1 Font 24/Smallcaps Map View 50x44 Zoom Use 0% Tactical HUD 1 Map Filters NONE Filters NONE Steam 1 RUN: 3375c0e7-a4e2-4213-b61f-1dd4ff2a0281